fUSD/lending_fUSD_20260517
["ID","MTS","AMOUNT","RATE_DAILY","PERIOD"]
[422487966,1778991040000,-500.0,0.00027123,2]
[422487970,1778991040000,-150.0,0.00027123,2]
[422487969,1778991040000,-500.0,0.00027123,2]
[422487965,1778991040000,-500.0,0.00027123,2]
[422487968,1778991040000,-500.0,0.00027123,2]
[422487967,1778991040000,-500.0,0.00027123,2]
[422487912,1778991040000,-1045.76058024,0.000255,2]
[422487943,1778991040000,-181.84,0.00026524,2]
[422487940,1778991040000,-1631.97457154,0.00026463,2]
[422487961,1778991040000,-274.94282544,0.00027123,2]
[422487950,1778991040000,-166.66,0.00026948,2]
[422487916,1778991040000,-1326.256695,0.000257,2]
[422487938,1778991040000,-193.86463689,0.00026397,2]
[422487918,1778991040000,-2687.05,0.00025786,2]
[422487917,1778991040000,-503.22,0.00025743,2]
[422487915,1778991040000,-1045.76058024,0.000257,2]
[422487919,1778991040000,-997.01,0.00025786,2]
[422487923,1778991040000,-300.0,0.00025999,10]
[422487924,1778991040000,-1045.76058024,0.00026,2]
[422487922,1778991040000,-300.0,0.00025999,10]
[422487921,1778991040000,-215.0785988,0.000258,7]
[422487925,1778991040000,-1326.256695,0.00026,2]
[422487927,1778991040000,-400.29843382,0.00026,20]
[422487937,1778991040000,-292.5918279,0.00026397,2]
[422487920,1778991040000,-1999.64,0.00025786,2]
[422487926,1778991040000,-27310.73338068,0.00026,10]
[422487949,1778991040000,-19005.72407565,0.00026882,21]
[422487939,1778991040000,-191.96350981,0.00026406,2]
[422487933,1778991040000,-1326.256695,0.000262,2]
[422487935,1778991040000,-353.33310697,0.00026397,2]
[422487934,1778991040000,-151.0,0.00026296,2]
[422487932,1778991040000,-1045.76058024,0.000262,2]
[422487930,1778991040000,-774.94,0.000261,7]
[422487931,1778991040000,-166.66,0.00026184,2]
[422487929,1778991040000,-160.0,0.00026,10]
[422487928,1778991040000,-215.0785988,0.00026,10]
[422487936,1778991040000,-643.95737728,0.00026397,2]
[422488012,1778991041000,-614.0,0.00027123,2]
[422488014,1778991041000,-500.0,0.00027123,2]
[422488010,1778991041000,-500.0,0.00027123,2]
[422488016,1778991041000,-150.0,0.00027123,2]
[422488015,1778991041000,-614.0,0.00027123,2]
[422488013,1778991041000,-388.48208283,0.00027123,2]
[422488004,1778991041000,-500.0,0.00027123,2]
[422488009,1778991041000,-614.0,0.00027123,2]
[422488007,1778991041000,-614.0,0.00027123,2]
[422488005,1778991041000,-500.0,0.00027123,2]
[422488011,1778991041000,-500.0,0.00027123,2]
[422488027,1778991041000,-169.56546123,0.00027123,2]
[422488006,1778991041000,-500.0,0.00027123,2]
[422488020,1778991041000,-500.0,0.00027123,2]
[422488031,1778991041000,-614.0,0.00027123,2]
[422488025,1778991041000,-614.0,0.00027123,2]
[422488017,1778991041000,-614.0,0.00027123,2]
[422488026,1778991041000,-150.0,0.00027123,2]
[422488019,1778991041000,-150.0,0.00027123,2]
[422488035,1778991041000,-150.0,0.00027123,2]
[422488021,1778991041000,-614.0,0.00027123,2]
[422488018,1778991041000,-500.0,0.00027123,2]
[422488029,1778991041000,-500.0,0.00027123,2]
[422488022,1778991041000,-218.63431577,0.00027123,2]
[422488028,1778991041000,-250.0,0.00027123,2]
[422488033,1778991041000,-150.0,0.00027123,2]
[422488040,1778991041000,-164.15228212,0.00027123,2]
[422488008,1778991041000,-500.0,0.00027123,2]
[422488023,1778991041000,-500.0,0.00027123,2]
[422487996,1778991041000,-614.0,0.00027123,2]
[422487971,1778991041000,-243.06675581,0.00027123,2]
[422487999,1778991041000,-614.0,0.00027123,2]
[422487977,1778991041000,-163.33619208,0.00027123,20]
[422487972,1778991041000,-150.0,0.00027123,2]
[422487976,1778991041000,-299.93318737,0.00027123,2]
[422487974,1778991041000,-441.19250183,0.00027123,2]
[422487975,1778991041000,-150.0,0.00027123,2]
[422487981,1778991041000,-500.0,0.00027123,2]
[422487980,1778991041000,-500.0,0.00027123,2]
[422487982,1778991041000,-371.02313261,0.00027123,2]
[422487988,1778991041000,-614.0,0.00027123,2]
[422487978,1778991041000,-500.0,0.00027123,2]
[422487987,1778991041000,-500.0,0.00027123,2]
[422487984,1778991041000,-296.25379635,0.00027123,2]
[422487990,1778991041000,-500.0,0.00027123,2]
[422487997,1778991041000,-500.0,0.00027123,2]
[422487979,1778991041000,-500.0,0.00027123,2]
[422487983,1778991041000,-614.0,0.00027123,2]
[422487989,1778991041000,-614.0,0.00027123,2]
[422487985,1778991041000,-614.0,0.00027123,2]
[422487992,1778991041000,-614.0,0.00027123,2]
[422488002,1778991041000,-500.0,0.00027123,2]
[422488003,1778991041000,-614.0,0.00027123,2]
[422487994,1778991041000,-614.0,0.00027123,2]
[422487995,1778991041000,-500.0,0.00027123,2]
[422487993,1778991041000,-500.0,0.00027123,2]
[422487991,1778991041000,-500.0,0.00027123,2]
[422487998,1778991041000,-500.0,0.00027123,2]
[422488000,1778991041000,-500.0,0.00027123,2]
[422488001,1778991041000,-500.0,0.00027123,2]
[422487986,1778991041000,-614.0,0.00027123,2]
[422488042,1778991041000,-150.0,0.00027123,2]
[422488024,1778991041000,-500.0,0.00027123,2]
[422488030,1778991041000,-250.0,0.00027123,2]
[422488071,1778991041000,-181.11697857,0.00027123,2]
[422488082,1778991041000,-152.0,0.00027361,3]
[422488081,1778991041000,-549.0,0.00027137,2]
[422488079,1778991041000,-183.06430618,0.00027123,2]
[422488070,1778991041000,-500.0,0.00027123,2]
[422488077,1778991041000,-500.0,0.00027123,2]
[422488075,1778991041000,-500.0,0.00027123,2]
[422488073,1778991041000,-500.0,0.00027123,2]
[422488072,1778991041000,-500.0,0.00027123,2]
[422488076,1778991041000,-500.0,0.00027123,2]
[422488074,1778991041000,-500.0,0.00027123,2]
[422488080,1778991041000,-150.0,0.00027123,2]
[422488078,1778991041000,-500.0,0.00027123,2]
[422488083,1778991041000,-235.55540464,0.00027397,7]
[422488085,1778991041000,-195.0612186,0.00027397,7]
[422488086,1778991041000,-1631.97457154,0.00027397,2]
[422488087,1778991041000,-1269.30832739,0.00027397,30]
[422488088,1778991041000,-500.0,0.00027397,2]
[422488084,1778991041000,-429.30491819,0.00027397,7]
[422488090,1778991041000,-500.0,0.00027397,2]
[422488089,1778991041000,-500.0,0.00027397,2]
[422488091,1778991041000,-500.0,0.00027397,2]
[422488092,1778991041000,-500.0,0.00027397,2]
[422488093,1778991041000,-500.0,0.00027397,2]
[422488095,1778991041000,-496.0,0.00027397,2]
[422488094,1778991041000,-500.0,0.00027397,2]
[422488097,1778991041000,-299.822509,0.00027397,2]
[422488098,1778991041000,-299.822509,0.00027397,2]
[422488036,1778991041000,-354.74373799,0.00027123,2]
[422488064,1778991041000,-500.0,0.00027123,2]
[422488063,1778991041000,-500.0,0.00027123,2]
[422488096,1778991041000,-1500.0,0.00027397,2]
[422488068,1778991041000,-500.0,0.00027123,2]
[422488065,1778991041000,-500.0,0.00027123,2]
[422488032,1778991041000,-250.0,0.00027123,2]
[422488041,1778991041000,-614.0,0.00027123,2]
[422488038,1778991041000,-150.0,0.00027123,2]
[422488034,1778991041000,-261.9823142,0.00027123,2]
[422488039,1778991041000,-150.0,0.00027123,2]
[422488044,1778991041000,-150.0,0.00027123,2]
[422488056,1778991041000,-150.0,0.00027123,2]
[422488055,1778991041000,-200.0,0.00027123,2]
[422488054,1778991041000,-150.0,0.00027123,2]
[422488043,1778991041000,-150.0,0.00027123,2]
[422488045,1778991041000,-150.0,0.00027123,2]
[422488046,1778991041000,-278.35356473,0.00027123,2]
[422488047,1778991041000,-500.0,0.00027123,2]
[422488037,1778991041000,-150.0,0.00027123,2]
[422488051,1778991041000,-614.0,0.00027123,2]
[422488049,1778991041000,-614.0,0.00027123,2]
[422488069,1778991041000,-500.0,0.00027123,2]
[422488062,1778991041000,-500.0,0.00027123,2]
[422488061,1778991041000,-500.0,0.00027123,2]
[422488060,1778991041000,-500.0,0.00027123,2]
[422488059,1778991041000,-500.0,0.00027123,2]
[422488067,1778991041000,-333.81947397,0.00027123,2]
[422488057,1778991041000,-229.8585841,0.00027123,2]
[422488050,1778991041000,-614.0,0.00027123,2]
[422488058,1778991041000,-500.0,0.00027123,2]
[422488052,1778991041000,-614.0,0.00027123,2]
[422488066,1778991041000,-500.0,0.00027123,2]
[422488048,1778991041000,-520.43657618,0.00027123,2]
[422488053,1778991041000,-620.79305125,0.00027123,2]
[422488142,1778991042000,-6055.0,0.00028155,2]
[422488123,1778991042000,-11340.79548359,0.00027422,2]
[422488125,1778991042000,-499.51038286,0.00027678,15]
[422488127,1778991042000,-477.98,0.0002769,2]
[422488134,1778991042000,-8871.29792529,0.00028,60]
[422488140,1778991042000,-1245.545,0.00028155,2]
[422488137,1778991042000,-478.01,0.00028152,2]
[422488138,1778991042000,-284.854,0.00028155,2]
[422488136,1778991042000,-477.98,0.00028037,2]
[422488135,1778991042000,-188.45,0.00028,2]
[422488126,1778991042000,-478.01,0.0002769,2]
[422488128,1778991042000,-477.98,0.0002769,2]
[422488146,1778991042000,-549.0,0.00028205,3]
[422488141,1778991042000,-417.0,0.00028155,2]
[422488144,1778991042000,-337.93,0.00028171,2]
[422488139,1778991042000,-1285.232,0.00028155,2]
[422488145,1778991042000,-774.94,0.000282,7]
[422488147,1778991042000,-200.0,0.00028208,2]
[422488152,1778991042000,-10000.0,0.000285,2]
[422488149,1778991042000,-151.0,0.00028267,2]
[422488148,1778991042000,-477.98,0.0002821,2]
[422488150,1778991042000,-477.98,0.00028383,2]
[422488155,1778991042000,-1094.79182922,0.00028553,5]
[422488124,1778991042000,-549.0,0.00027671,2]
[422488153,1778991042000,-1144.58537617,0.00028553,5]
[422488143,1778991042000,-337.93,0.00028159,2]
[422488122,1778991042000,-215.0785988,0.000274,10]
[422488118,1778991042000,-166.77041051,0.00027397,30]
[422488133,1778991042000,-150.0,0.00027896,2]
[422488151,1778991042000,-477.98,0.00028383,2]
[422488106,1778991042000,-371.903411,0.00027397,2]
[422488105,1778991042000,-371.903411,0.00027397,2]
[422488102,1778991042000,-2126.743381,0.00027397,2]
[422488103,1778991042000,-2126.743381,0.00027397,2]
[422488101,1778991042000,-2126.743381,0.00027397,2]
[422488099,1778991042000,-299.822509,0.00027397,2]
[422488104,1778991042000,-2126.743381,0.00027397,2]
[422488100,1778991042000,-299.822509,0.00027397,2]
[422488110,1778991042000,-449.13,0.00027397,2]
[422488107,1778991042000,-371.903411,0.00027397,2]
[422488111,1778991042000,-7284.63,0.00027397,10]
[422488129,1778991042000,-181.84,0.0002773,2]
[422488109,1778991042000,-151.0,0.00027397,2]
[422488115,1778991042000,-429.30491819,0.00027397,7]
[422488120,1778991042000,-1202.01,0.000274,7]
[422488113,1778991042000,-6070.52,0.00027397,10]
[422488108,1778991042000,-371.903411,0.00027397,2]
[422488112,1778991042000,-300.0,0.00027397,2]
[422488116,1778991042000,-195.0612186,0.00027397,7]
[422488117,1778991042000,-258.48618252,0.00027397,7]
[422488119,1778991042000,-222.29,0.000274,7]
[422488131,1778991042000,-500.0,0.000278,7]
[422488130,1778991042000,-625.0,0.00027796,2]
[422488121,1778991042000,-9004.33,0.000274,14]
[422488132,1778991042000,-477.98,0.00027864,2]
[422488114,1778991042000,-235.55540464,0.00027397,7]
[422488154,1778991042000,-1093.52177424,0.00028553,5]
[422488158,1778991042000,-1017.17640578,0.00028553,5]
[422488159,1778991042000,-1040.99692969,0.00028553,5]
[422488191,1778991042000,-413.64,0.00028661,7]
[422488193,1778991042000,-1719.82,0.00028693,30]
[422488194,1778991042000,-3126.24,0.00028693,30]
[422488195,1778991042000,-413.61,0.00028693,30]
[422488201,1778991042000,-1719.82,0.00028725,2]
[422488200,1778991042000,-9004.33,0.000287,14]
[422488192,1778991042000,-3129.67,0.00028661,7]
[422488202,1778991042000,-3126.24,0.00028725,2]
[422488197,1778991042000,-1716.19,0.00028693,30]
[422488196,1778991042000,-704.95,0.00028693,30]
[422488198,1778991042000,-413.64,0.00028693,30]
[422488207,1778991042000,-3129.67,0.00028725,2]
[422488189,1778991042000,-704.95,0.00028661,7]
[422488203,1778991042000,-413.61,0.00028725,2]
[422488210,1778991042000,-1719.82,0.00028756,7]
[422488208,1778991042000,-477.98,0.00028729,2]
[422488209,1778991042000,-549.0,0.00028739,3]
[422488204,1778991042000,-704.95,0.00028725,2]
[422488205,1778991042000,-1716.19,0.00028725,2]
[422488211,1778991042000,-3126.24,0.00028756,7]
[422488213,1778991042000,-704.95,0.00028756,7]
[422488206,1778991042000,-413.64,0.00028725,2]
[422488214,1778991042000,-1716.19,0.00028756,7]
[422488217,1778991042000,-3129.67,0.00028756,7]
[422488157,1778991042000,-1068.17003853,0.00028553,5]
[422488216,1778991042000,-413.64,0.00028756,7]
[422488212,1778991042000,-413.61,0.00028756,7]
[422488185,1778991042000,-3129.67,0.0002863,2]
[422488199,1778991042000,-3129.67,0.00028693,30]
[422488190,1778991042000,-1716.19,0.00028661,7]
[422488167,1778991042000,-1010.04131533,0.00028553,5]
[422488188,1778991042000,-413.61,0.00028661,7]
[422488160,1778991042000,-1008.45877211,0.00028553,5]
[422488156,1778991042000,-1124.69878998,0.00028553,5]
[422488165,1778991042000,-1095.94572496,0.00028553,5]
[422488166,1778991042000,-1126.51588176,0.00028553,5]
[422488161,1778991042000,-1090.39713263,0.00028553,5]
[422488163,1778991042000,-1132.83932669,0.00028553,5]
[422488164,1778991042000,-1118.35787951,0.00028553,5]
[422488172,1778991042000,-1132.53518905,0.00028553,5]
[422488177,1778991042000,-477.98,0.00028556,2]
[422488169,1778991042000,-1056.18053816,0.00028553,5]
[422488179,1778991042000,-1719.82,0.0002863,2]
[422488162,1778991042000,-1095.81280495,0.00028553,5]
[422488175,1778991042000,-1114.27993435,0.00028553,5]
[422488186,1778991042000,-1719.82,0.00028661,7]
[422488170,1778991042000,-1009.44094131,0.00028553,5]
[422488184,1778991042000,-413.64,0.0002863,2]
[422488183,1778991042000,-1716.19,0.0002863,2]
[422488182,1778991042000,-704.95,0.0002863,2]
[422488180,1778991042000,-3126.24,0.0002863,2]
[422488187,1778991042000,-3126.24,0.00028661,7]
[422488176,1778991042000,-1591.47535841,0.00028553,5]
[422488178,1778991042000,-478.01,0.00028613,2]
[422488173,1778991042000,-1131.58807562,0.00028553,5]
[422488168,1778991042000,-1004.94877211,0.00028553,5]
[422488181,1778991042000,-413.61,0.0002863,2]
[422488258,1778991043000,-1716.19,0.00028915,2]
[422488252,1778991043000,-477.98,0.00028902,2]
[422488256,1778991043000,-413.61,0.00028915,2]
[422488254,1778991043000,-1719.82,0.00028915,2]
[422488251,1778991043000,-1202.01,0.000289,7]
[422488255,1778991043000,-3126.24,0.00028915,2]
[422488261,1778991043000,-181.84,0.00028936,2]
[422488260,1778991043000,-3129.67,0.00028915,2]
[422488253,1778991043000,-707.03,0.00028915,2]
[422488249,1778991043000,-413.64,0.00028883,30]
[422488257,1778991043000,-704.95,0.00028915,2]
[422488250,1778991043000,-3129.67,0.00028883,30]
[422488259,1778991043000,-413.64,0.00028915,2]
[422488263,1778991043000,-1719.82,0.00028947,7]
[422488274,1778991043000,-704.95,0.00028979,30]
[422488271,1778991043000,-1719.82,0.00028979,30]
[422488268,1778991043000,-413.64,0.00028947,7]
[422488266,1778991043000,-704.95,0.00028947,7]
[422488264,1778991043000,-3126.24,0.00028947,7]
[422488272,1778991043000,-3126.24,0.00028979,30]
[422488270,1778991043000,-707.03,0.00028979,30]
[422488262,1778991043000,-707.03,0.00028947,7]
[422488273,1778991043000,-413.61,0.00028979,30]
[422488269,1778991043000,-3129.67,0.00028947,7]
[422488265,1778991043000,-413.61,0.00028947,7]
[422488247,1778991043000,-704.95,0.00028883,30]
[422488267,1778991043000,-1716.19,0.00028947,7]
[422488244,1778991043000,-1719.82,0.00028883,30]
[422488224,1778991043000,-1716.19,0.00028788,30]
[422488246,1778991043000,-413.61,0.00028883,30]
[422488276,1778991043000,-413.64,0.00028979,30]
[422488221,1778991043000,-3126.24,0.00028788,30]
[422488223,1778991043000,-704.95,0.00028788,30]
[422488220,1778991043000,-1719.82,0.00028788,30]
[422488218,1778991043000,-1269.30832739,0.00028767,30]
[422488225,1778991043000,-413.64,0.00028788,30]
[422488219,1778991043000,-215.498386,0.00028767,7]
[422488227,1778991043000,-215.0785988,0.000288,7]
[422488226,1778991043000,-3129.67,0.00028788,30]
[422488232,1778991043000,-1716.19,0.0002882,2]
[422488237,1778991043000,-3126.24,0.00028852,7]
[422488228,1778991043000,-1719.82,0.0002882,2]
[422488245,1778991043000,-3126.24,0.00028883,30]
[422488236,1778991043000,-1719.82,0.00028852,7]
[422488229,1778991043000,-3126.24,0.0002882,2]
[422488231,1778991043000,-704.95,0.0002882,2]
[422488233,1778991043000,-413.64,0.0002882,2]
[422488230,1778991043000,-413.61,0.0002882,2]
[422488235,1778991043000,-707.03,0.00028852,7]
[422488238,1778991043000,-413.61,0.00028852,7]
[422488241,1778991043000,-413.64,0.00028852,7]
[422488242,1778991043000,-3129.67,0.00028852,7]
[422488239,1778991043000,-704.95,0.00028852,7]
[422488240,1778991043000,-1716.19,0.00028852,7]
[422488243,1778991043000,-707.03,0.00028883,30]
[422488248,1778991043000,-1716.19,0.00028883,30]
[422488234,1778991043000,-3129.67,0.0002882,2]
[422488286,1778991043000,-3129.67,0.0002901,2]
[422488222,1778991043000,-413.61,0.00028788,30]
[422488275,1778991043000,-1716.19,0.00028979,30]
[422488313,1778991043000,-477.99,0.00029075,2]
[422488334,1778991043000,-3129.67,0.00029137,7]
[422488324,1778991043000,-1719.82,0.00029137,7]
[422488321,1778991043000,-413.64,0.00029105,2]
[422488319,1778991043000,-704.95,0.00029105,2]
[422488320,1778991043000,-1716.19,0.00029105,2]
[422488325,1778991043000,-3126.24,0.00029137,7]
[422488322,1778991043000,-3129.67,0.00029105,2]
[422488331,1778991043000,-413.64,0.00029137,7]
[422488323,1778991043000,-707.03,0.00029137,7]
[422488326,1778991043000,-413.61,0.00029137,7]
[422488327,1778991043000,-704.95,0.00029137,7]
[422488336,1778991043000,-707.03,0.00029169,30]
[422488347,1778991043000,-1716.19,0.00029169,30]
[422488341,1778991043000,-3126.24,0.00029169,30]
[422488343,1778991043000,-413.61,0.00029169,30]
[422488338,1778991043000,-1719.82,0.00029169,30]
[422488349,1778991043000,-413.64,0.00029169,30]
[422488356,1778991043000,-1719.82,0.00029201,2]
[422488351,1778991043000,-3129.67,0.00029169,30]
[422488353,1778991043000,-707.03,0.00029201,2]
[422488345,1778991043000,-704.95,0.00029169,30]
[422488360,1778991043000,-413.61,0.00029201,2]
[422488358,1778991043000,-3126.24,0.00029201,2]
[422488362,1778991043000,-704.95,0.00029201,2]
[422488364,1778991043000,-1716.19,0.00029201,2]
[422488278,1778991043000,-222.29,0.00029,7]
[422488317,1778991043000,-3126.24,0.00029105,2]
[422488311,1778991043000,-3129.67,0.00029074,30]
[422488329,1778991043000,-1716.19,0.00029137,7]
[422488315,1778991043000,-707.03,0.00029105,2]
[422488277,1778991043000,-3129.67,0.00028979,30]
[422488310,1778991043000,-413.64,0.00029074,30]
[422488282,1778991043000,-413.61,0.0002901,2]
[422488285,1778991043000,-413.64,0.0002901,2]
[422488279,1778991043000,-707.03,0.0002901,2]
[422488283,1778991043000,-704.95,0.0002901,2]
[422488280,1778991043000,-1719.82,0.0002901,2]
[422488284,1778991043000,-1716.19,0.0002901,2]
[422488281,1778991043000,-3126.24,0.0002901,2]
[422488287,1778991043000,-150.0,0.00029036,2]
[422488300,1778991043000,-707.03,0.00029074,30]
[422488288,1778991043000,-707.03,0.00029042,7]
[422488289,1778991043000,-1719.82,0.00029042,7]
[422488302,1778991043000,-1719.82,0.00029074,30]
[422488298,1778991043000,-3129.67,0.00029042,7]
[422488312,1778991043000,-478.02114585,0.00029075,2]
[422488304,1778991043000,-3126.24,0.00029074,30]
[422488318,1778991043000,-413.61,0.00029105,2]
[422488314,1778991043000,-478.01,0.00029075,2]
[422488309,1778991043000,-1716.19,0.00029074,30]
[422488305,1778991043000,-413.61,0.00029074,30]
[422488316,1778991043000,-1719.82,0.00029105,2]
[422488296,1778991043000,-413.64,0.00029042,7]
[422488292,1778991043000,-704.95,0.00029042,7]
[422488290,1778991043000,-3126.24,0.00029042,7]
[422488291,1778991043000,-413.61,0.00029042,7]
[422488294,1778991043000,-1716.19,0.00029042,7]
[422488307,1778991043000,-704.95,0.00029074,30]
[422488409,1778991044000,-250.0,0.00029765,2]
[422488412,1778991044000,-192.979,0.00029765,2]
[422488414,1778991044000,-166.003,0.00029765,2]
[422488413,1778991044000,-250.0,0.00029765,2]
[422488407,1778991044000,-150.0,0.00029765,2]
[422488402,1778991044000,-2000.0,0.00029714,2]
[422488408,1778991044000,-151.0,0.00029765,2]
[422488395,1778991044000,-2000.0,0.00029714,2]
[422488399,1778991044000,-2000.0,0.00029714,2]
[422488394,1778991044000,-160.0,0.00029624,2]
[422488411,1778991044000,-150.352,0.00029765,2]
[422488410,1778991044000,-206.126,0.00029765,2]
[422488417,1778991044000,-150.972,0.00029765,2]
[422488428,1778991044000,-1550.0,0.00029893,2]
[422488415,1778991044000,-150.0,0.00029765,2]
[422488419,1778991044000,-1362.252,0.00029765,2]
[422488429,1778991044000,-1550.0,0.00029893,2]
[422488430,1778991044000,-1550.0,0.00029893,2]
[422488418,1778991044000,-937.097,0.00029765,2]
[422488420,1778991044000,-8711.74610467,0.000298,2]
[422488421,1778991044000,-549.0,0.00029807,4]
[422488422,1778991044000,-2500.0,0.00029835,2]
[422488425,1778991044000,-1550.0,0.00029893,2]
[422488424,1778991044000,-1350.0,0.00029835,30]
[422488427,1778991044000,-1550.0,0.00029893,2]
[422488423,1778991044000,-950.0,0.00029835,2]
[422488401,1778991044000,-2000.0,0.00029714,2]
[422488416,1778991044000,-151.0,0.00029765,2]
[422488400,1778991044000,-2000.0,0.00029714,2]
[422488375,1778991044000,-1719.93,0.00029232,7]
[422488403,1778991044000,-2000.0,0.00029714,2]
[422488374,1778991044000,-707.14,0.00029232,7]
[422488426,1778991044000,-1550.0,0.00029893,2]
[422488376,1778991044000,-3126.28,0.00029232,7]
[422488368,1778991044000,-3129.67,0.00029201,2]
[422488366,1778991044000,-413.64,0.00029201,2]
[422488372,1778991044000,-174.98711701,0.00029223,7]
[422488370,1778991044000,-177.01352694,0.00029223,7]
[422488377,1778991044000,-413.72,0.00029232,7]
[422488379,1778991044000,-1716.21,0.00029232,7]
[422488380,1778991044000,-413.75,0.00029232,7]
[422488382,1778991044000,-191.96350981,0.00029253,2]
[422488383,1778991044000,-155.65591212,0.00029254,2]
[422488392,1778991044000,-150.0,0.00029624,2]
[422488398,1778991044000,-2000.0,0.00029714,2]
[422488381,1778991044000,-3129.8,0.00029232,7]
[422488387,1778991044000,-11340.79548359,0.00029518,2]
[422488386,1778991044000,-549.0,0.00029273,4]
[422488385,1778991044000,-151.58836363,0.00029254,7]
[422488390,1778991044000,-150.0,0.00029624,2]
[422488388,1778991044000,-150.0,0.00029534,2]
[422488391,1778991044000,-150.0,0.00029624,2]
[422488389,1778991044000,-492.82335824,0.0002958,2]
[422488393,1778991044000,-150.0,0.00029624,2]
[422488397,1778991044000,-2000.0,0.00029714,2]
[422488406,1778991044000,-150.0,0.00029765,2]
[422488405,1778991044000,-189.0,0.00029748,2]
[422488404,1778991044000,-2000.0,0.00029714,2]
[422488396,1778991044000,-2000.0,0.00029714,2]
[422488384,1778991044000,-157.12758552,0.00029254,7]
[422488431,1778991044000,-1550.0,0.00029893,2]
[422488378,1778991044000,-705.02,0.00029232,7]
[422488438,1778991044000,-2157.0,0.000301,7]
[422488468,1778991044000,-2000.0,0.00030299,2]
[422488458,1778991044000,-156.0,0.00030175,30]
[422488461,1778991044000,-153.0,0.00030175,30]
[422488466,1778991044000,-2000.0,0.00030299,2]
[422488470,1778991044000,-2000.0,0.00030299,2]
[422488481,1778991044000,-303.17672725,0.00030616,7]
[422488479,1778991044000,-311.31182423,0.00030616,2]
[422488473,1778991044000,-2000.0,0.00030299,2]
[422488474,1778991044000,-2000.0,0.00030299,2]
[422488475,1778991044000,-549.0,0.00030341,5]
[422488480,1778991044000,-314.25517105,0.00030616,7]
[422488472,1778991044000,-2000.0,0.00030299,2]
[422488471,1778991044000,-2000.0,0.00030299,2]
[422488467,1778991044000,-2000.0,0.00030299,2]
[422488476,1778991044000,-28154.0,0.000305,2]
[422488477,1778991044000,-354.02705387,0.00030584,7]
[422488493,1778991044000,-151.0,0.00030649,7]
[422488483,1778991044000,-171.0,0.00030617,7]
[422488492,1778991044000,-164.809143,0.00030649,7]
[422488491,1778991044000,-151.0,0.00030649,7]
[422488482,1778991044000,-156.45510037,0.00030616,7]
[422488484,1778991044000,-159.24191236,0.00030617,7]
[422488485,1778991044000,-159.02812847,0.00030617,7]
[422488490,1778991044000,-151.0,0.00030649,7]
[422488487,1778991044000,-164.809143,0.00030649,7]
[422488434,1778991044000,-1382.0,0.00029893,2]
[422488486,1778991044000,-151.0,0.00030649,7]
[422488489,1778991044000,-164.809143,0.00030649,7]
[422488478,1778991044000,-349.97423401,0.00030584,7]
[422488469,1778991044000,-2000.0,0.00030299,2]
[422488488,1778991044000,-164.809143,0.00030649,7]
[422488465,1778991044000,-2000.0,0.00030299,2]
[422488463,1778991044000,-9004.33,0.000302,14]
[422488442,1778991044000,-1090.640863,0.0003013,2]
[422488437,1778991044000,-774.94,0.000301,7]
[422488432,1778991044000,-1550.0,0.00029893,2]
[422488433,1778991044000,-1550.0,0.00029893,2]
[422488440,1778991044000,-692.6150834,0.000301,2]